[Event "Najdorf Memorial-A 2022"]
[Site "Warsaw"]
[Date "2022.07.14"]
[Round "6.11"]
[White "Jedrusik, Adam"]
[Black "Sriram, Jha"]
[Result "0-1"]
[ECO "D12"]
[WhiteElo "1960"]
[BlackElo "2361"]
[Annotator "ChessBase"]
[PlyCount "68"]
[EventDate "2022.07.09"]
[EventType "swiss"]
[EventCountry "POL"]
[SourceTitle "playchess.com"]
[Source "ChessBase"]
[SourceQuality "1"]
[TimeControl "40/5400+30:1800+30"]

1. d4 d5 {[%emt 0:01:06]} 2. c4 {[%emt 0:00:09]} c6 {[%emt 0:01:18]} 3. Nf3 {[%emt 0:00:15]} Nf6 {[%emt 0:00:48]} 4. e3 {[%emt 0:00:11]} Bf5 {[%emt 0:02:50]} 5. Nc3 {[%emt 0:00:09]} e6 {[%emt 0:00:32]} 6. Nh4 {[%emt 0:00:33]} Be4 {[%emt 0:00:43]} 7. f3 {[%emt 0:00:06]} Bg6 {[%emt 0:00:03]} 8. Qb3 {[%emt 0:00:04]} Qc7 {[%emt 0:00:15]} 9. Bd2 {[%emt 0:00:07]} Be7 {[%emt 0:00:13]} 10. cxd5 {[%emt 0:00:11]} cxd5 {[%emt 0:06:18]} 11. Nxg6 {[%emt 0:00:03]} hxg6 {[%emt 0:00:06]} 12. O-O-O {[%emt 0:00:03]} Nc6 {[%emt 0:01:04]} 13. Kb1 {[%emt 0:00:38]} O-O {[%emt 0:00:20]} 14. Rc1 {[%emt 0:00:08]} a6 {[%emt 0:15:45]} 15. Qd1 {[%emt 0:00:16]} e5 {[%emt 0:00:27]} 16. g4 {[%emt 0:01:57]} exd4 {[%emt 0:14:52]} 17. exd4 {[%emt 0:00:09]} Qd7 {[%emt 0:00:04]} 18. h4 {[%emt 0:06:47]} Nxd4 {[%emt 0:00:26]} 19. Be3 {[%emt 0:03:36]} Nb5 {[%emt 0:01:36]} 20. Nxb5 {[%emt 0:10:13]} axb5 {[%emt 0:00:07]} 21. g5 {[%emt 0:02:35]} Nh5 {[%emt 0:02:03]} 22. Bh3 {[%emt 0:00:33]} Qd6 {[%emt 0:04:04]} 23. Re1 {[%emt 0:14:48]} Rfe8 {[%emt 0:12:29]} 24. Qb3 {[%emt 0:13:21]} d4 {[%emt 0:06:17]} 25. Bg1 {[%emt 0:02:43]} d3 {[%emt 0:05:39]} 26. Red1 {[%emt 0:07:57]} d2 {[%emt 0:07:49]} 27. Rc2 {[%emt 0:00:53]} Bxg5 {[%emt 0:01:19]} 28. hxg5 {[%emt 0:04:19]} Re1 {[%emt 0:00:02]} 29. Rc3 {[%emt 0:10:20]} Qg3 {[%emt 0:00:29]} 30. Be3 {[%emt 0:00:27]} Qxf3 {[%emt 0:01:16]} 31. Bxd2 {[%emt 0:03:45]} Rxd1+ {[%emt 0:01:35]} 32. Bc1 {[%emt 0:00:05]} Qe4+ {[%emt 0:00:38]} 33. Ka1 {[%emt 0:00:20]} Qh1 {[%emt 0:03:14]} 34. Qc2 {[%emt 0:00:48]} b4 {[%emt 0:00:48]} 0-1

[Event "Najdorf Memorial-A 2022"]
[Site "Warsaw"]
[Date "2022.07.14"]
[Round "6.12"]
[White "Harazinska, Magdalena"]
[Black "Szwaj, Justyna"]
[Result "1-0"]
[ECO "A53"]
[WhiteElo "1976"]
[BlackElo "1797"]
[Annotator "ChessBase"]
[PlyCount "67"]
[EventDate "2022.07.09"]
[EventType "swiss"]
[EventCountry "POL"]
[SourceTitle "playchess.com"]
[Source "ChessBase"]
[SourceQuality "1"]
[TimeControl "40/5400+30:1800+30"]

1. d4 {[%emt 0:00:03]} Nf6 {[%emt 0:00:15]} 2. c4 {[%emt 0:00:04]} d6 {[%emt 0:00:11]} 3. Nc3 {[%emt 0:00:17]} Nbd7 {[%emt 0:00:37]} 4. e4 {[%emt 0:00:22]} e5 {[%emt 0:00:16]} 5. d5 {[%emt 0:00:15]} Nc5 {[%emt 0:00:42]} 6. Bd3 {[%emt 0:01:18]} a5 {[%emt 0:00:30]} 7. Nge2 {[%emt 0:02:24]} g6 {[%emt 0:04:39]} 8. f3 {[%emt 0:01:51]} Bg7 {[%emt 0:00:57]} 9. Bg5 {[%emt 0:03:46]} Bd7 {[%emt 0:09:59]} 10. Bc2 {[%emt 0:05:34]} O-O {[%emt 0:05:01]} 11. Qd2 {[%emt 0:06:35]} Qb8 {[%emt 0:04:37]} 12. O-O {[%emt 0:10:28]} Ne8 {[%emt 0:08:40]} 13. Be7 {[%emt 0:02:28]} Nf6 {[%emt 0:04:36]} 14. Bxf8 {[%emt 0:00:12]} Qxf8 {[%emt 0:00:02]} 15. g4 {[%emt 0:14:44]} Qe7 {[%emt 0:16:11]} 16. Ng3 {[%emt 0:07:24]} h5 {[%emt 0:05:23]} 17. gxh5 {[%emt 0:04:49]} Nxh5 {[%emt 0:01:08]} 18. Nxh5 {[%emt 0:03:45]} gxh5 {[%emt 0:00:20]} 19. Kh1 {[%emt 0:02:42]} Kh7 {[%emt 0:06:42]} 20. Ne2 {[%emt 0:16:28]} Bh6 {[%emt 0:01:57]} 21. Qc3 {[%emt 0:02:10]} Qh4 {[%emt 0:05:45]} 22. f4 {[%emt 0:02:59]} Bg4 {[%emt 0:02:22]} 23. fxe5 {[%emt 0:01:51]} f5 {[%emt 0:18:09]} 24. Ng3 {[%emt 0:05:55]} Rg8 {[%emt 0:02:07]} 25. exf5 {[%emt 0:00:47]} Bh3 {[%emt 0:01:05]} 26. f6+ {[%emt 0:00:46]} Kh8 {[%emt 0:00:07]} 27. e6 {[%emt 0:00:38]} Ne4 {[%emt 0:01:09]} 28. Bxe4 {[%emt 0:01:18]} Qxe4+ {[%emt 0:00:27]} 29. Nxe4 {[%emt 0:00:09]} Bg2+ {[%emt 0:00:31]} 30. Kg1 {[%emt 0:00:08]} Bxe4+ {[%emt 0:00:27]} 31. Kf2 {[%emt 0:00:13]} Rg2+ {[%emt 0:00:33]} 32. Ke1 {[%emt 0:00:08]} Bg5 {[%emt 0:00:33]} 33. f7+ {[%emt 0:00:15]} Kh7 {[%emt 0:00:07]} 34. Qh8+ {[%emt 0:00:33]} 1-0

[Event "Najdorf Memorial-A 2022"]
[Site "Warsaw"]
[Date "2022.07.14"]
[Round "6.12"]
[White "Ratajczak, Hubert"]
[Black "Golecki, Jan"]
[Result "1-0"]
[ECO "B42"]
[WhiteElo "1943"]
[BlackElo "2219"]
[Annotator "ChessBase"]
[PlyCount "86"]
[EventDate "2022.07.09"]
[EventType "swiss"]
[EventCountry "POL"]
[SourceTitle "playchess.com"]
[Source "ChessBase"]
[SourceQuality "1"]
[TimeControl "40/5400+30:1800+30"]

1. e4 {[%emt 0:00:27]} c5 {[%emt 0:00:16]} 2. Nf3 {[%emt 0:00:15]} e6 {[%emt 0:00:05]} 3. d4 {[%emt 0:00:29]} cxd4 {[%emt 0:00:06]} 4. Nxd4 {[%emt 0:00:01]} a6 {[%emt 0:00:06]} 5. Bd3 {[%emt 0:05:38]} Bc5 {[%emt 0:00:24]} 6. Nb3 {[%emt 0:01:33]} Ba7 {[%emt 0:00:05]} 7. Qe2 {[%emt 0:03:40]} Nc6 {[%emt 0:00:11]} 8. Be3 {[%emt 0:04:29]} Nf6 {[%emt 0:00:15]} 9. Nc3 {[%emt 0:01:38]} Qc7 {[%emt 0:00:20]} 10. O-O {[%emt 0:06:11]} b5 {[%emt 0:01:09]} 11. a4 {[%emt 0:03:04]} b4 {[%emt 0:00:09]} 12. Nd1 {[%emt 0:02:00]} d6 {[%emt 0:02:03]} 13. Bxa7 {[%emt 0:04:11]} Rxa7 {[%emt 0:01:57]} 14. Ne3 {[%emt 0:00:05]} e5 {[%emt 0:02:02]} 15. Rad1 {[%emt 0:07:27]} Be6 {[%emt 0:02:04]} 16. Nd5 {[%emt 0:08:39]} Nxd5 {[%emt 0:00:22]} 17. exd5 {[%emt 0:00:08]} Bxd5 {[%emt 0:00:04]} 18. Bxa6 {[%emt 0:03:19]} Be6 {[%emt 0:11:49]} 19. Bb5 {[%emt 0:00:57]} O-O {[%emt 0:00:24]} 20. Qe3 {[%emt 0:05:13]} Ne7 {[%emt 0:06:10]} 21. Qe4 {[%emt 0:07:39]} d5 {[%emt 0:19:59]} 22. Qxb4 {[%emt 0:00:31]} Qxc2 {[%emt 0:00:06]} 23. Nc5 {[%emt 0:03:02]} Qg6 {[%emt 0:04:04]} 24. Nxe6 {[%emt 0:02:24]} fxe6 {[%emt 0:04:26]} 25. Qd6 {[%emt 0:01:29]} e4 {[%emt 0:01:18]} 26. Bd7 {[%emt 0:01:44]} Kf7 {[%emt 0:00:12]} 27. Bb5 {[%emt 0:11:00]} Nf5 {[%emt 0:01:07]} 28. Qe5 {[%emt 0:03:32]} Kg8 {[%emt 0:00:14]} 29. Rc1 {[%emt 0:00:34]} Nh4 {[%emt 0:04:32]} 30. Qg3 {[%emt 0:00:14]} Qf6 {[%emt 0:00:05]} 31. Rc6 {[%emt 0:01:30]} Nf5 {[%emt 0:00:30]} 32. Qf4 {[%emt 0:06:02]} Qxb2 {[%emt 0:00:42]} 33. Rxe6 {[%emt 0:00:29]} Nd4 {[%emt 0:00:31]} 34. Qe5 {[%emt 0:00:14]} h6 {[%emt 0:07:03]} 35. Re8 {[%emt 0:02:09]} Rxe8 {[%emt 0:00:33]} 36. Qxe8+ {[%emt 0:00:11]} Kh7 {[%emt 0:00:03]} 37. Bd7 {[%emt 0:01:45]} Ne2+ {[%emt 0:02:05]} 38. Kh1 {[%emt 0:00:04]} Qf6 {[%emt 0:00:05]} 39. Be6 {[%emt 0:00:52]} Re7 {[%emt 0:02:19]} 40. Bg8+ {[%emt 0:00:00]} Kh8 {[%emt 0:00:00]} 41. Qc8 {[%emt 0:03:32]} Rc7 {[%emt 0:01:30]} 42. Qxc7 {[%emt 0:00:32]} Kxg8 {[%emt 0:00:02]} 43. Qc5 {[%emt 0:06:57]} d4 {[%emt 0:03:18]} 1-0

[Event "Najdorf Memorial-A 2022"]
[Site "Warsaw"]
[Date "2022.07.14"]
[Round "6.13"]
[White "Dalkowski, Rafal"]
[Black "Kutowski, Marcel"]
[Result "0-1"]
[ECO "D40"]
[WhiteElo "2120"]
[BlackElo "1961"]
[Annotator "ChessBase"]
[PlyCount "74"]
[EventDate "2022.07.09"]
[EventType "swiss"]
[EventCountry "POL"]
[SourceTitle "playchess.com"]
[Source "ChessBase"]
[SourceQuality "1"]
[TimeControl "40/5400+30:1800+30"]

1. d4 {[%emt 0:00:02]} Nf6 {[%emt 0:00:08]} 2. c4 {[%emt 0:00:04]} e6 {[%emt 0:00:07]} 3. Nf3 {[%emt 0:00:04]} d5 {[%emt 0:00:03]} 4. Nc3 {[%emt 0:00:24]} c5 {[%emt 0:00:12]} 5. e3 {[%emt 0:00:18]} Nc6 {[%emt 0:00:49]} 6. a3 {[%emt 0:00:14]} dxc4 {[%emt 0:00:10]} 7. Bxc4 {[%emt 0:00:10]} a6 {[%emt 0:00:06]} 8. O-O {[%emt 0:01:14]} b5 {[%emt 0:01:17]} 9. Bd3 {[%emt 0:01:20]} cxd4 {[%emt 0:01:59]} 10. exd4 {[%emt 0:00:12]} Bb7 {[%emt 0:00:18]} 11. Bc2 {[%emt 0:02:57]} Be7 {[%emt 0:03:01]} 12. Bg5 {[%emt 0:00:58]} O-O {[%emt 0:02:21]} 13. Qd3 {[%emt 0:00:30]} g6 {[%emt 0:00:21]} 14. Rfe1 {[%emt 0:04:36]} Re8 {[%emt 0:02:48]} 15. Rad1 {[%emt 0:00:49]} Rc8 {[%emt 0:10:57]} 16. h4 {[%emt 0:02:25]} Na5 {[%emt 0:10:23]} 17. Ne5 {[%emt 0:06:58]} Nc4 {[%emt 0:03:23]} 18. Nxc4 Rxc4 {[%emt 0:02:51]} 19. Bb3 {[%emt 0:06:11]} Rc8 {[%emt 0:03:00]} 20. Qe2 {[%emt 0:05:54]} Nd5 {[%emt 0:07:12]} 21. Ne4 Bxg5 {[%emt 0:01:32]} 22. Nxg5 {[%emt 0:02:37]} h6 {[%emt 0:02:12]} 23. Nf3 {[%emt 0:00:51]} Nf4 {[%emt 0:02:42]} 24. Qe3 {[%emt 0:00:44]} Qf6 {[%emt 0:06:03]} 25. Rd2 {[%emt 0:13:31]} Red8 {[%emt 0:12:02]} 26. Bd1 {[%emt 0:01:21]} Rc1 {[%emt 0:03:52]} 27. g3 {[%emt 0:05:26]} Nd5 {[%emt 0:04:00]} 28. Qe2 {[%emt 0:01:41]} Nb6 {[%emt 0:01:47]} 29. Qe5 {[%emt 0:05:19]} Qxe5 {[%emt 0:03:10]} 30. dxe5 {[%emt 0:00:16]} Rxd2 {[%emt 0:00:15]} 31. Nxd2 {[%emt 0:00:08]} Na4 {[%emt 0:00:55]} 32. Rf1 {[%emt 0:00:30]} Nxb2 {[%emt 0:00:30]} 33. Bb3 {[%emt 0:06:43]} Rc3 {[%emt 0:00:38]} 34. Rb1 {[%emt 0:01:00]} Nd3 {[%emt 0:00:13]} 35. f4 {[%emt 0:01:02]} Nc5 {[%emt 0:00:11]} 36. Kf2 {[%emt 0:00:24]} Ne4+ 37. Ke1 Re3+ 0-1

[Event "Najdorf Memorial-A 2022"]
[Site "Warsaw"]
[Date "2022.07.14"]
[Round "6.13"]
[White "Rejniak, Zuzanna"]
[Black "Siekanska, Maria"]
[Result "0-1"]
[ECO "B52"]
[WhiteElo "1813"]
[BlackElo "1964"]
[Annotator "ChessBase"]
[PlyCount "112"]
[EventDate "2022.07.09"]
[EventType "swiss"]
[EventCountry "POL"]
[SourceTitle "playchess.com"]
[Source "ChessBase"]
[SourceQuality "1"]
[TimeControl "40/5400+30:1800+30"]

1. e4 c5 2. Nf3 d6 3. Bb5+ Bd7 4. a4 Nf6 5. Nc3 e6 6. O-O Be7 7. Bxd7+ Qxd7 8. d4 cxd4 9. Nxd4 O-O 10. Qe2 Nc6 11. Nxc6 Qxc6 12. Bf4 Nd7 13. Nd5 Bd8 14. Nb4 Qc7 15. Ra3 Bf6 16. Rh3 g6 17. c3 Rfd8 18. Qd2 Nc5 19. Re1 Nxa4 20. Rd3 Be7 21. Rh3 Nc5 22. Bg5 Bxg5 23. Qxg5 Nd7 24. Nc2 Rdc8 25. Qh6 Nf8 26. Ne3 Qd8 27. Ng4 Rc5 28. Rd1 Qg5 29. Qxg5 Rxg5 30. Ne3 Rd8 31. Nc4 d5 32. Ne3 d4 33. cxd4 Rb5 34. d5 exd5 35. Nxd5 Rxb2 36. f4 Kg7 37. f5 f6 38. e5 fxe5 39. f6+ Kf7 40. Re3 Rb5 41. Rxe5 Ne6 42. Rxe6 Rdxd5 43. Rde1 Rd7 44. h4 h5 45. Kh2 a5 46. Kh3 a4 47. R1e3 Ra5 48. Re7+ Rxe7 49. Rxe7+ Kxf6 50. Rxb7 a3 51. Rb1 a2 52. Ra1 Ke5 53. Kg3 Kd4 54. Kf3 Kc3 55. g4 hxg4+ 56. Kxg4 Kb2 0-1

[Event "Najdorf Memorial-A 2022"]
[Site "Warsaw"]
[Date "2022.07.14"]
[Round "6.14"]
[White "Szewczyk, Mariusz"]
[Black "Owoc, Jakub"]
[Result "1-0"]
[ECO "B12"]
[WhiteElo "2103"]
[BlackElo "1756"]
[Annotator "ChessBase"]
[PlyCount "73"]
[EventDate "2022.07.09"]
[EventType "swiss"]
[EventCountry "POL"]
[SourceTitle "playchess.com"]
[Source "ChessBase"]
[SourceQuality "1"]
[TimeControl "40/5400+30:1800+30"]

1. e4 {[%emt 0:00:02]} c6 {[%emt 0:00:08]} 2. d4 {[%emt 0:00:04]} d5 {[%emt 0:00:06]} 3. e5 {[%emt 0:00:01]} c5 {[%emt 0:00:07]} 4. dxc5 {[%emt 0:00:04]} Nc6 {[%emt 0:00:16]} 5. Nf3 {[%emt 0:00:16]} Bg4 {[%emt 0:00:36]} 6. Bb5 {[%emt 0:05:09]} e6 {[%emt 0:00:52]} 7. b4 {[%emt 0:02:11]} Qc7 {[%emt 0:03:14]} 8. Bb2 {[%emt 0:07:38]} Nge7 {[%emt 0:02:30]} 9. O-O {[%emt 0:01:22]} a6 {[%emt 0:04:56]} 10. Ba4 {[%emt 0:00:44]} Ng6 {[%emt 0:00:22]} 11. Nbd2 {[%emt 0:01:38]} Be7 {[%emt 0:02:09]} 12. h3 {[%emt 0:08:47]} Bf5 {[%emt 0:06:02]} 13. Nd4 {[%emt 0:03:18]} Ngxe5 {[%emt 0:02:04]} 14. Nxf5 {[%emt 0:01:10]} exf5 {[%emt 0:00:04]} 15. Bxe5 {[%emt 0:02:48]} Qxe5 {[%emt 0:00:14]} 16. Nf3 {[%emt 0:00:30]} Qf6 {[%emt 0:01:59]} 17. Qxd5 {[%emt 0:00:11]} O-O {[%emt 0:00:29]} 18. Bxc6 {[%emt 0:04:14]} bxc6 {[%emt 0:00:25]} 19. Qe5 {[%emt 0:00:49]} a5 {[%emt 0:10:56]} 20. a3 {[%emt 0:01:06]} Rfe8 {[%emt 0:01:20]} 21. Rae1 {[%emt 0:01:02]} axb4 {[%emt 0:07:56]} 22. axb4 {[%emt 0:00:09]} Rad8 {[%emt 0:00:19]} 23. Re2 {[%emt 0:04:35]} Kf8 {[%emt 0:04:16]} 24. Rfe1 {[%emt 0:00:26]} g5 {[%emt 0:03:13]} 25. Nxg5 {[%emt 0:05:19]} Qxg5 {[%emt 0:00:12]} 26. Qh8+ {[%emt 0:00:07]} Qg8 {[%emt 0:00:02]} 27. Qxg8+ {[%emt 0:00:08]} Kxg8 {[%emt 0:00:05]} 28. Rxe7 {[%emt 0:00:06]} Rxe7 {[%emt 0:00:04]} 29. Rxe7 {[%emt 0:00:05]} Rd1+ {[%emt 0:00:03]} 30. Kh2 {[%emt 0:00:07]} Rd2 {[%emt 0:00:03]} 31. Rc7 {[%emt 0:00:27]} Rxf2 {[%emt 0:00:13]} 32. Rxc6 {[%emt 0:00:16]} Rxc2 {[%emt 0:00:03]} 33. b5 {[%emt 0:00:14]} f4 {[%emt 0:00:02]} 34. Kg1 {[%emt 0:00:29]} Kg7 {[%emt 0:00:01]} 35. b6 {[%emt 0:00:10]} f6 {[%emt 0:00:13]} 36. b7 {[%emt 0:00:08]} Rb2 {[%emt 0:00:02]} 37. Rb6 {[%emt 0:00:07]} 1-0

[Event "Najdorf Memorial-A 2022"]
[Site "Warsaw"]
[Date "2022.07.14"]
[Round "6.14"]
[White "Basiaga, Sebastian"]
[Black "Vanduyfhuys, Igor"]
[Result "0-1"]
[ECO "B20"]
[WhiteElo "1770"]
[BlackElo "1959"]
[Annotator "ChessBase"]
[PlyCount "116"]
[EventDate "2022.07.09"]
[EventType "swiss"]
[EventCountry "POL"]
[SourceTitle "playchess.com"]
[Source "ChessBase"]
[SourceQuality "1"]
[TimeControl "40/5400+30:1800+30"]

1. e4 {[%emt 0:00:02]} c5 {[%emt 0:00:03]} 2. b3 {[%emt 0:00:12]} Nc6 {[%emt 0:01:16]} 3. Bb2 {[%emt 0:00:10]} d6 {[%emt 0:00:12]} 4. Bb5 {[%emt 0:00:07]} Nf6 {[%emt 0:00:06]} 5. Bxc6+ {[%emt 0:00:51]} bxc6 {[%emt 0:00:03]} 6. d3 {[%emt 0:00:36]} Rb8 {[%emt 0:01:44]} 7. Nd2 {[%emt 0:00:33]} e5 {[%emt 0:02:02]} 8. Ne2 {[%emt 0:00:37]} g6 {[%emt 0:00:46]} 9. O-O {[%emt 0:01:39]} Bg7 {[%emt 0:00:22]} 10. h3 {[%emt 0:02:12]} O-O {[%emt 0:00:33]} 11. f4 {[%emt 0:00:59]} Qe7 {[%emt 0:02:28]} 12. fxe5 {[%emt 0:00:37]} dxe5 {[%emt 0:00:44]} 13. Ng3 {[%emt 0:02:31]} Ba6 {[%emt 0:01:59]} 14. Qe2 {[%emt 0:00:26]} Ne8 {[%emt 0:01:35]} 15. Ba3 {[%emt 0:13:13]} Nc7 {[%emt 0:01:52]} 16. Qe3 {[%emt 0:00:17]} Ne6 {[%emt 0:00:02]} 17. Nf3 {[%emt 0:01:31]} Rb5 {[%emt 0:03:14]} 18. Bb2 {[%emt 0:05:41]} Nd4 {[%emt 0:01:08]} 19. Nxd4 {[%emt 0:01:18]} cxd4 {[%emt 0:00:36]} 20. Qe2 {[%emt 0:04:06]} Bh6 {[%emt 0:03:56]} 21. a4 {[%emt 0:02:14]} Rb6 {[%emt 0:01:24]} 22. Ba3 {[%emt 0:01:56]} c5 {[%emt 0:00:12]} 23. Rf3 {[%emt 0:01:52]} Bc8 {[%emt 0:06:12]} 24. Bc1 {[%emt 0:01:35]} Bxc1 {[%emt 0:00:30]} 25. Rxc1 {[%emt 0:00:01]} Rf6 {[%emt 0:00:46]} 26. Rcf1 {[%emt 0:02:06]} Rxf3 {[%emt 0:00:31]} 27. Qxf3 {[%emt 0:01:28]} Qg5 {[%emt 0:01:59]} 28. Kh2 {[%emt 0:01:36]} f6 {[%emt 0:00:23]} 29. Rf2 {[%emt 0:06:50]} Kg7 {[%emt 0:01:01]} 30. Nf1 {[%emt 0:02:52]} Be6 {[%emt 0:04:08]} 31. g4 {[%emt 0:04:48]} Kf7 {[%emt 0:04:24]} 32. Ng3 {[%emt 0:03:26]} Ke7 {[%emt 0:00:10]} 33. Qe2 {[%emt 0:01:10]} Qh4 {[%emt 0:01:10]} 34. Qf3 {[%emt 0:01:48]} h5 {[%emt 0:03:08]} 35. gxh5 {[%emt 0:07:13]} Bxh3 {[%emt 0:02:05]} 36. Kg1 {[%emt 0:00:20]} gxh5 {[%emt 0:00:14]} 37. Nf5+ {[%emt 0:01:51]} Bxf5 {[%emt 0:00:10]} 38. Qxf5 {[%emt 0:00:13]} Qg5+ {[%emt 0:00:52]} 39. Rg2 {[%emt 0:03:36]} Qxf5 {[%emt 0:01:27]} 40. exf5 {[%emt 0:00:00]} Kf7 {[%emt 0:00:00]} 41. Kh2 {[%emt 0:00:27]} Rg8 {[%emt 0:00:29]} 42. Rf2 {[%emt 0:03:30]} Rg4 {[%emt 0:00:05]} 43. a5 {[%emt 0:00:44]} a6 {[%emt 0:00:20]} 44. Rf1 {[%emt 0:00:51]} Kg7 {[%emt 0:01:13]} 45. b4 {[%emt 0:02:09]} cxb4 {[%emt 0:03:27]} 46. Rb1 {[%emt 0:00:09]} Rf4 {[%emt 0:00:03]} 47. Kg2 {[%emt 0:00:24]} Rxf5 {[%emt 0:00:08]} 48. Rxb4 {[%emt 0:00:11]} Rg5+ {[%emt 0:00:03]} 49. Kh2 {[%emt 0:00:59]} f5 {[%emt 0:00:09]} 50. Rb7+ {[%emt 0:00:13]} Kh6 {[%emt 0:00:03]} 51. Re7 {[%emt 0:01:32]} f4 {[%emt 0:00:20]} 52. Re6+ {[%emt 0:00:37]} Kg7 {[%emt 0:01:06]} 53. Rxa6 {[%emt 0:00:04]} f3 {[%emt 0:00:04]} 54. Rb6 {[%emt 0:01:20]} Rg2+ {[%emt 0:03:23]} 55. Kh3 {[%emt 0:01:11]} Rg1 {[%emt 0:00:05]} 56. Rb7+ {[%emt 0:00:32]} Kg6 {[%emt 0:00:25]} 57. Rb6+ {[%emt 0:00:30]} Kg5 {[%emt 0:00:04]} 58. Rb8 {[%emt 0:01:27]} f2 {[%emt 0:00:05]} 0-1

[Event "Najdorf Memorial-A 2022"]
[Site "Warsaw"]
[Date "2022.07.14"]
[Round "6.15"]
[White "Shilov, Sergej"]
[Black "Polak, Michal"]
[Result "1/2-1/2"]
[ECO "E15"]
[WhiteElo "2048"]
[BlackElo "1944"]
[Annotator "ChessBase"]
[PlyCount "69"]
[EventDate "2022.07.09"]
[EventType "swiss"]
[EventCountry "POL"]
[SourceTitle "playchess.com"]
[Source "ChessBase"]
[SourceQuality "1"]
[TimeControl "40/5400+30:1800+30"]

1. d4 {[%emt 0:00:08]} Nf6 {[%emt 0:00:34]} 2. Nf3 {[%emt 0:00:34]} e6 3. c4 {[%emt 0:00:28]} b6 {[%emt 0:00:19]} 4. g3 {[%emt 0:00:30]} Ba6 {[%emt 0:00:07]} 5. Qa4 {[%emt 0:01:20]} Bb7 {[%emt 0:00:09]} 6. Bg2 {[%emt 0:00:36]} c5 {[%emt 0:00:11]} 7. O-O {[%emt 0:01:17]} cxd4 {[%emt 0:00:06]} 8. Nxd4 {[%emt 0:00:18]} Bxg2 {[%emt 0:00:11]} 9. Kxg2 {[%emt 0:00:02]} Be7 {[%emt 0:01:45]} 10. Nc3 {[%emt 0:00:40]} Qc8 {[%emt 0:00:17]} 11. Rd1 {[%emt 0:06:47]} a6 {[%emt 0:00:22]} 12. e4 {[%emt 0:01:57]} Qb7 {[%emt 0:00:29]} 13. f3 {[%emt 0:00:33]} O-O {[%emt 0:01:34]} 14. Be3 {[%emt 0:02:53]} Nc6 {[%emt 0:07:15]} 15. Nxc6 {[%emt 0:15:28]} dxc6 {[%emt 0:02:56]} 16. Qb3 {[%emt 0:00:12]} Nd7 {[%emt 0:21:02]} 17. Na4 {[%emt 0:08:20]} Rab8 {[%emt 0:01:31]} 18. Bf4 {[%emt 0:06:46]} e5 {[%emt 0:01:42]} 19. Be3 {[%emt 0:00:19]} b5 {[%emt 0:07:02]} 20. cxb5 {[%emt 0:02:16]} axb5 {[%emt 0:00:27]} 21. Nc3 {[%emt 0:00:35]} Nc5 {[%emt 0:00:45]} 22. Qc2 {[%emt 0:00:28]} Ne6 {[%emt 0:00:51]} 23. a4 {[%emt 0:01:05]} bxa4 {[%emt 0:20:37]} 24. Nxa4 {[%emt 0:00:13]} Qb3 {[%emt 0:00:20]} 25. Qc3 {[%emt 0:16:33]} Qb5 {[%emt 0:16:13]} 26. Qd3 {[%emt 0:07:06]} h6 {[%emt 0:02:32]} 27. h4 {[%emt 0:04:13]} Rb7 {[%emt 0:01:47]} 28. Qxb5 {[%emt 0:02:00]} Rxb5 {[%emt 0:00:02]} 29. Rd7 {[%emt 0:00:25]} Bc5 {[%emt 0:05:56]} 30. Nxc5 {[%emt 0:04:53]} Nxc5 {[%emt 0:00:07]} 31. Bxc5 {[%emt 0:00:12]} Rxc5 {[%emt 0:00:01]} 32. Rad1 {[%emt 0:00:10]} Rc2+ {[%emt 0:02:30]} 33. R1d2 {[%emt 0:00:10]} Rxd2+ {[%emt 0:00:07]} 34. Rxd2 {[%emt 0:00:01]} Rb8 {[%emt 0:00:15]} 35. Rc2 {[%emt 0:01:42]} 1/2-1/2

[Event "Najdorf Memorial-A 2022"]
[Site "Warsaw"]
[Date "2022.07.14"]
[Round "6.15"]
[White "Stachecki, Mikolaj"]
[Black "Kotowicz, Kamil"]
[Result "1/2-1/2"]
[ECO "B13"]
[WhiteElo "1918"]
[BlackElo "1770"]
[Annotator "ChessBase"]
[PlyCount "81"]
[EventDate "2022.07.09"]
[EventType "swiss"]
[EventCountry "POL"]
[SourceTitle "playchess.com"]
[Source "ChessBase"]
[SourceQuality "1"]
[TimeControl "40/5400+30:1800+30"]

1. e4 {[%emt 0:00:03]} c6 {[%emt 0:00:13]} 2. d4 {[%emt 0:00:12]} d5 {[%emt 0:00:04]} 3. exd5 {[%emt 0:00:09]} cxd5 {[%emt 0:00:09]} 4. Bd3 {[%emt 0:00:09]} Nc6 {[%emt 0:00:07]} 5. c3 {[%emt 0:00:07]} Nf6 {[%emt 0:00:04]} 6. h3 {[%emt 0:00:09]} e5 {[%emt 0:00:04]} 7. dxe5 {[%emt 0:00:47]} Nxe5 {[%emt 0:00:06]} 8. Nf3 {[%emt 0:00:15]} Nxd3+ {[%emt 0:02:39]} 9. Qxd3 {[%emt 0:00:09]} Be7 {[%emt 0:01:04]} 10. O-O {[%emt 0:03:14]} O-O {[%emt 0:00:30]} 11. Be3 {[%emt 0:02:20]} a6 {[%emt 0:02:17]} 12. Nbd2 {[%emt 0:16:38]} Be6 {[%emt 0:01:52]} 13. Rfe1 {[%emt 0:23:22]} Re8 {[%emt 0:04:09]} 14. Rad1 {[%emt 0:05:36]} Qc7 {[%emt 0:01:44]} 15. Nd4 {[%emt 0:02:29]} Bd6 {[%emt 0:02:43]} 16. Re2 {[%emt 0:11:04]} Nh5 {[%emt 0:11:21]} 17. Rde1 {[%emt 0:03:02]} Qd7 {[%emt 0:01:21]} 18. N2f3 {[%emt 0:03:16]} Nf4 {[%emt 0:06:22]} 19. Bxf4 {[%emt 0:00:21]} Bxf4 {[%emt 0:00:06]} 20. g3 {[%emt 0:04:27]} Bh6 {[%emt 0:02:08]} 21. Nf5 {[%emt 0:04:23]} f6 {[%emt 0:07:27]} 22. Nxh6+ {[%emt 0:00:29]} gxh6 {[%emt 0:00:08]} 23. Kh2 {[%emt 0:01:26]} Bf7 {[%emt 0:01:22]} 24. Qd4 {[%emt 0:02:02]} Kg7 {[%emt 0:03:05]} 25. c4 {[%emt 0:01:52]} Rxe2 {[%emt 0:01:15]} 26. Rxe2 {[%emt 0:00:06]} Rd8 {[%emt 0:00:44]} 27. Rd2 {[%emt 0:03:51]} Qf5 {[%emt 0:03:07]} 28. Nh4 {[%emt 0:00:53]} Qe5 {[%emt 0:02:26]} 29. Qg4+ {[%emt 0:04:01]} Qg5 {[%emt 0:01:07]} 30. Qd4 {[%emt 0:00:43]} Qe5 {[%emt 0:01:11]} 31. Ng2 {[%emt 0:01:05]} b5 {[%emt 0:02:31]} 32. c5 {[%emt 0:02:31]} a5 {[%emt 0:04:19]} 33. a3 {[%emt 0:01:32]} Qxd4 {[%emt 0:01:13]} 34. Rxd4 {[%emt 0:00:06]} a4 {[%emt 0:00:03]} 35. Nf4 {[%emt 0:01:20]} Rc8 {[%emt 0:00:32]} 36. Nxd5 {[%emt 0:00:45]} Rxc5 {[%emt 0:00:19]} 37. Nc3 {[%emt 0:03:28]} Rc4 {[%emt 0:02:19]} 38. Rd7 {[%emt 0:00:36]} b4 {[%emt 0:01:21]} 39. axb4 {[%emt 0:00:06]} Rxb4 {[%emt 0:00:04]} 40. Rd2 {[%emt 0:00:00]} h5 {[%emt 0:00:00]} 41. h4 1/2-1/2